Cogmind - Beta 14 @@@ ROGUE MODE // 2024.12.26 @ 17:08:53 Player: dwarfinator Result: Destroyed by D-53 Grenadier with Mini Grenade Launcher Performance ------------- Evolutions (1) 500 Regions Visited (3) 600 Robots Destroyed (21) 105 Value Destroyed (486) 486 Prototype IDs (1) 20 Alien Tech Used (0) 0 Bonus (200) 200 TOTAL SCORE: 1911 Bonus ------- Pacifist 200 Cogmind --------- Core Integrity 0/400 Matter 290/300 Energy 160/160 System Corruption 6% Temperature Cool (0) Movement Rolling (190) Ox6 Location -9/Mines Parts ------- > --- POWER (1) -------- Light Nuclear Core > --- PROPULSION (2) --- Compact Wheel > --- UTILITY (4) ------ Large Storage Unit Huge Storage Unit > --- WEAPON (2) ------- Maul > --- INVENTORY (25) --- Nuclear Core Nuclear Core Nuclear Core Nuclear Core Disposable Heat Sink Disposable Heat Sink Disposable Heat Sink Disposable Heat Sink Disposable Heat Sink Large Matter Pod (150) Machine Analyzer Machine Analyzer Assault Rifle Mini Grenade Launcher Missile Launcher Missile Launcher Missile Launcher Missile Launcher Plasma Cutter Mace Mace Maul Maul Peak State ------------ > --- POWER ------------ Light Nuclear Core > --- PROPULSION ------- Compact Wheel Compact Wheel > --- UTILITY ---------- Disposable Heat Sink Small Storage Unit Huge Storage Unit Core Shielding > --- WEAPON ----------- Light Cannon Maul > --- INVENTORY -------- Nuclear Core Nuclear Core Nuclear Core Nuclear Core Light Nuclear Core Light Nuclear Core Light Nuclear Core Compact Wheel Disposable Heat Sink Disposable Heat Sink Disposable Heat Sink Disposable Heat Sink Large Matter Pod Machine Analyzer Machine Analyzer Assault Rifle Mini Grenade Launcher Missile Launcher Missile Launcher Missile Launcher Missile Launcher Plasma Cutter Mace Maul Maul [Rating: 19] Favorites ----------- Power Ion Engine Engine Ion Engine Power Core Light Nuclear Core Propulsion Compact Wheel Wheel Compact Wheel Utility Disposable Heat Sink Device Disposable Heat Sink Storage Small Storage Unit Protection Core Shielding Weapon Maul Energy Cannon Advanced Beam Cannon Ballistic Gun Assault Rifle Ballistic Cannon Light Cannon Impact Weapon Maul Build | -11 -10 -9 -9 ------- Run | Yrd Mat Mat Min Slots Evolved 2 | . . 2 . Power . | . . . . Propulsion . | . . . . Utility 2 | . . 2 . Weapon . | . . . . Parts Attached 30 | 6 1 17 6 Power 5 | 1 . 2 2 Engine 3 | 1 . 2 . Core 2 | . . . 2 Reactor . | . . . . Propulsion 5 | 2 . 2 1 Treads . | . . . . Leg . | . . . . Wheel 5 | 2 . 2 1 Hover . | . . . . Flight . | . . . . Utility 10 | 1 1 5 3 Device 4 | . 1 3 . Storage 4 | 1 . 2 1 Processor . | . . . . Hackware . | . . . . Protection 2 | . . . 2 Artifact . | . . . . Weapon 10 | 2 . 8 . Energy Gun . | . . . . Energy Cannon 1 | . . 1 . Ballistic Gun 4 | 2 . 2 . Ballistic Cannon 1 | . . 1 . Launcher . | . . . . Special Weapon . | . . . . Impact Weapon 4 | . . 4 . Slashing Weapon . | . . . . Piercing Weapon . | . . . . Special Melee Weapon . | . . . . Unidentified Prototypes 1 | . . 1 . Parts Lost 14 | . . 8 6 Power 3 | . . 2 1 Propulsion 4 | . . 2 2 Utility 4 | . . 2 2 Weapon 3 | . . 2 1 Highest Loss Streak 6 | . . 6 6 To Critical Strikes . | . . . . Average Slot Usage (%) 89 | . 99 86 93 Engine 9 | . 14 9 1 Core 1 | . . . 9 Wheel 22 | . 28 21 20 Device 15 | . 13 18 3 Storage 16 | . 14 14 25 Protection 1 | . . . 11 Ballistic Gun 9 | . 28 6 . Ballistic Cannon 4 | . . 4 9 Impact Weapon 9 | . . 10 11 Peak Build Rating 19 | 6 7 18 19 Average Rating 11 | 4 6 12 16 On Entrance 7 | . 6 7 18 Naked Turns . | . . . . Heaviest Build 117 | 14 15 96 117 Greatest Support 32 | 26 26 32 32 Greatest Overweight (x) 7 | . . 5 7 Average Overweight (x) 1 | . . 1 3 Largest Inventory Capacity 25 | 8 8 25 25 Average Capacity 16 | 7 8 17 25 Most Carried 25 | 2 5 25 25 Average Carried 13 | 1 4 14 24 Final Capacity 25 | 8 8 25 25 Final Carried 25 | 2 5 25 23 Class Distribution -------------------- 100% | Mutant Dominant Class ---------------- Mutant | -10/Materials Mutant | -9/Materials Mutant | -9/Mines Resources | -11 -10 -9 -9 ----------- Run | Yrd Mat Mat Min Matter Collected 623 | 237 . 346 40 Remotely . | . . . . Salvage Created 580 | . . 558 22 Parts 14 | . . 12 2 Haulers Intercepted 2 | . . 2 . Recyclers Shooed . | . . . . Parts Field Recycled . | . . . . Retrieved Matter . | . . . . Parts Self-Destructed . | . . . . Prevented . | . . . . Kills | -11 -10 -9 -9 ------- Run | Yrd Mat Mat Min Combat Hostiles Destroyed 13 | . . 9 4 Melee 7 | . . 3 4 Classes Destroyed 9 | . . 7 2 Worker 1 | . . 1 . Tunneler 4 | . . 4 . Hauler 2 | . . 2 . Watcher 1 | . . 1 . Swarmer 3 | . . . 3 Grunt 5 | . . 5 . Brawler 1 | . . 1 . Sentry 3 | . . 3 . Demolisher 1 | . . . 1 Best Kill Streak 4 | . . 4 3 Combat Bots Only 4 | . . 4 3 Max Kills in Single Turn 1 | . . 1 1 Gunslinging . | . . . . Exploded . | . . . . Melee 1 | . . 1 1 Uniques/NPCs Destroyed . | . . . . Combat | -11 -10 -9 -9 -------- Run | Yrd Mat Mat Min Hostile Shots Fired 144 | . 18 78 48 Missed 46 | . 7 29 10 Damage Taken 1732 | . 85 733 914 Core 413 | . 6 154 253 Absorbed by Shields . | . . . . Redirected to Shielding 30 | . . . 30 Core Remaining (%) 98 | 100 97 . . Volleys Fired . | . . . . Largest . | . . . . Hottest . | . . . . Shots Fired . | . . . . Gun . | . . . . Cannon . | . . . . Launcher . | . . . . Special . | . . . . Kinetic . | . . . . Thermal . | . . . . Explosive . | . . . . Electromagnetic . | . . . . Robot Hit Streak . | . . . . Robot Miss Streak . | . . . . Penetration Max . | . . . . Secondary Targets . | . . . . Shots Hit Robots 47 | . . 38 9 Core Hits 6 | . . 4 2 Critical Kills 3 | . . 3 . Critical Parts Destroyed 10 | . . 8 2 Critical Strikes 14 | . . 12 2 Smash 14 | . . 12 2 Melee Attacks 55 | . . 45 10 Impact 55 | . . 45 10 Slashing . | . . . . Piercing . | . . . . Sneak Attacks 8 | . . 7 1 Combat Hostiles . | . . . . Follow-up Attacks 2 | . . 2 . Damage Inflicted 2039 | . . 1658 381 Guns . | . . . . Cannons . | . . . . Explosions . | . . . . Melee 2039 | . . 1658 381 Ramming . | . . . . Kinetic . | . . . . Thermal . | . . . . Explosive . | . . . . Electromagnetic . | . . . . Impact 2039 | . . 1658 381 Slashing . | . . . . Piercing . | . . . . Highest Corruption 6 | . . 6 6 Average Corruption 5 | . . 5 6 Corruption Purged . | . . . . Corruption Blocked . | . . . . Effects 13 | . . 7 6 Message Errors 5 | . . 1 4 Matter Fused 3 | . . 3 . Heat Flow Errors 1 | . . 1 . Data Loss (minor) 2 | . . 1 1 Data Loss (major) 2 | . . 1 1 Overload Shots . | . . . . Overflow Damage 877 | . . 728 149 Projectiles . | . . . . Explosions . | . . . . Melee 877 | . . 728 149 Knockbacks 4 | . . 4 . Impact 4 | . . 4 . Kinetic . | . . . . Secondary . | . . . . Self-Inflicted Damage . | . . . . Shots . | . . . . Rammed . | . . . . Targets Rammed . | . . . . Kicked . | . . . . Crushed . | . . . . Highest Temperature 170 | . . 170 . Average Temperature 80 | . . 80 . Received Heat Transfer 311 | . . 291 20 Siege Activations . | . . . . Robots Corrupted 11 | . . 11 . Combat Hostiles 6 | . . 6 . Parts Fried 8 | . . 8 . Impact Corruptions 31 | . . 25 6 Robots Melted . | . . . . Combat Hostiles . | . . . . Parts Melted . | . . . . Heat Transferred . | . . . . Parts Sabotaged . | . . . . Parts Stolen . | . . . . Parts Stripped . | . . . . Power Chain Reactions . | . . . . Alert | -11 -10 -9 -9 ------- Run | Yrd Mat Mat Min Peak Influence 155 | . 61 155 133 Initial 48 | . . 25 48 Average 44 | . 14 45 90 Maximum Alert Level . | . . . . Low Security (%) 100 | 100 100 100 100 Level 1 . | . . . . Level 2 . | . . . . Level 3 . | . . . . Level 4 . | . . . . Level 5 . | . . . . High Security . | . . . . Max Security . | . . . . Squads Dispatched 2 | . . 2 . Investigation 1 | . . 1 . Extermination . | . . . . Reinforcement 1 | . . 1 . Assault . | . . . . Garrison . | . . . . Intercept . | . . . . Searches Triggered . | . . . . Construction Impeded . | . . . . Haulers Reinforced . | . . . . Active Scanning Responses . | . . . . Cargo Convoy Interrupts . | . . . . Stealth | -11 -10 -9 -9 --------- Run | Yrd Mat Mat Min Distress Signals 3 | . . 1 2 Communications Jammed . | . . . . Distress Signals . | . . . . Times Spotted 45 | . 5 19 21 Peak Tracking Total 16 | . 3 6 16 Tactical Retreats 5 | . 2 1 2 Traps | -11 -10 -9 -9 ------- Run | Yrd Mat Mat Min Traps Triggered . | . . . . Indirectly . | . . . . Trap Hack Attempts . | . . . . Triggered . | . . . . Disarmed . | . . . . Reprogrammed . | . . . . Reused . | . . . . Traps Extracted . | . . . . Installed . | . . . . Triggered . | . . . . Machines | -11 -10 -9 -9 ---------- Run | Yrd Mat Mat Min Machines Disabled . | . . . . Max in Single Turn . | . . . . Machines Repaired . | . . . . Machines Dismantled . | . . . . Machines Sabotaged . | . . . . Overloaded Fab Kills . | . . . . Hacking | -11 -10 -9 -9 --------- Run | Yrd Mat Mat Min Machines Accessed 15 | . 5 10 . Terminals 12 | . 5 7 . Fabricators . | . . . . Repair Stations . | . . . . Recycling Units 1 | . . 1 . Scanalyzers 2 | . . 2 . Garrison Access . | . . . . Total Hacks 51 | . 15 36 . Successful 25 | . 8 17 . Failed 25 | . 7 18 . Catastrophic 1 | . . 1 . Database Lockouts 1 | . . 1 . Manual 33 | . 12 21 . Terminals 45 | . 15 30 . Fabricators . | . . . . Repair Stations . | . . . . Recycling Units 2 | . . 2 . Scanalyzers 4 | . . 4 . Garrison Access . | . . . . Terminal Hacks 5 | . 1 4 . Robot Analysis 1 | . . 1 . Branch Access Points 1 | . . 1 . Locate Traps 1 | . . 1 . Hauler Manifests 1 | . . 1 . Zone Layout 1 | . 1 . . Fabricator Hacks . | . . . . Repair Station Hacks . | . . . . Recycling Unit Hacks . | . . . . Scanalyzer 4 | . . 4 . Insert Component 2 | . . 2 . Analyze 2 | . . 2 . Garrison Access Hacks . | . . . . Unauthorized Hacks 16 | . 7 9 . Terminals 16 | . 7 9 . Track 1 | . 1 . . Botnet 4 | . 2 2 . Disrupt 1 | . . 1 . Operators 2 | . 1 1 . Skim 8 | . 3 5 . Fabricators . | . . . . Repair Stations . | . . . . Recycling Units . | . . . . Scanalyzers . | . . . . Garrison Access . | . . . . Data Cores Recovered . | . . . . Used . | . . . . Hacking Detections 14 | . 5 9 . Full Trace Events 1 | . . 1 . Feedback Events . | . . . . Feedback Blocked . | . . . . Robot Schematics Acquired . | . . . . Robots Built . | . . . . Authchips . | . . . . Time . | . . . . Total Robot Build Rating . | . . . . Part Schematics Acquired 2 | . . 2 . Parts Built . | . . . . Authchips . | . . . . Time . | . . . . Total Part Build Rating . | . . . . Parts Repaired . | . . . . Time . | . . . . Parts Recycled . | . . . . Recycled Matter . | . . . . Retrieved Matter . | . . . . Retrieved Components . | . . . . Parts Scanalyzed 2 | . . 2 . Part Schematics Acquired 2 | . . 2 . Parts Damaged . | . . . . Bothacking | -11 -10 -9 -9 ------------ Run | Yrd Mat Mat Min Used RIF Installer . | . . . . Robots Hacked . | . . . . Non-combat . | . . . . Combat . | . . . . Robot Hacks Applied . | . . . . Relay Couplers Released . | . . . . Fabnet Peak Effective % . | . . . . Robots Rewired . | . . . . Allies Hacked . | . . . . Hacks Repelled . | . . . . Allies | -11 -10 -9 -9 -------- Run | Yrd Mat Mat Min Total Allies . | . . . . Largest Group . | . . . . Highest-Rated Group . | . . . . Highest-Rated Ally . | . . . . Total Orders . | . . . . Ally Attacks . | . . . . Total Damage . | . . . . Kills . | . . . . Allies Corrupted . | . . . . Allies Melted . | . . . . Intel | -11 -10 -9 -9 ------- Run | Yrd Mat Mat Min Robot Analysis Total 1 | . . 1 . Derelict Logs Recovered . | . . . . Drone Launches . | . . . . Drone Recoveries . | . . . . Exploration | -11 -10 -9 -9 ------------- Run | Yrd Mat Mat Min Turns Passed 1453 | 46 234 992 181 Spaces Moved 730 | 39 173 431 87 Core 2 | 1 . 1 . Treads . | . . . . Legs . | . . . . Wheels 728 | 38 173 430 87 Hover . | . . . . Flight . | . . . . Fastest Speed 50 | 50 90 90 130 Average Speed 116 | 89 90 122 148 Slowest Speed 300 | 100 90 300 205 Overloaded Moves . | . . . . Propulsion Burnouts . | . . . . Robots Hopped . | . . . . Cave-ins Triggered 1 | . . . 1 Exploration Rate (%) 23 | 3 26 44 19 Regions Visited 3 Branch Regions 1 Pre-discovered Areas . | . . . . Known Exits Taken 1 | . . 1 . Unknown Exits Taken 2 | 1 1 . . Scrap Searched 2 | . . . 2 Spaces Dug . | . . . . Terrain Destroyed . | . . . . Melee . | . . . . Projectile . | . . . . AOE . | . . . . Terrain Rammed . | . . . . Walls Destroyed . | . . . . Machines Disabled . | . . . . Actions | -11 -10 -9 -9 --------- Run | Yrd Mat Mat Min Total 1227 | 46 250 811 120 Wait 354 | . 74 271 9 Move 727 | 38 172 430 87 Hop . | . . . . Pick Up 40 | 2 3 34 1 Fast Attach 18 | 6 1 8 3 Attach 9 | . . 7 2 Detach 6 | . . 4 2 Swap 3 | . . 2 1 Drop 17 | . . 12 5 Fire . | . . . . Melee 53 | . . 43 10 Ram . | . . . . Kick . | . . . . Crush . | . . . . Escape Stasis . | . . . . Rewire . | . . . . Trap . | . . . . Miscellaneous . | . . . . Route ------- -11/Scrapyard -10/Materials -9/Materials (discovered 2 exits: [*Mat] / *Min) -9/Mines (discovered 2 exits: [*Mat] / [*Zio]) History --------- Turn | Location | Event 9 | -11/Scrapyard | Discovered new exit (range 15) 47 | -11/Scrapyard | Entered Materials 133 | -10/Materials | Discovered new exit (range 3) 281 | -10/Materials | Entered another Materials area 281 | -9/Materials | Evolved 2 slots: Utility x2 306 | -9/Materials | Build established: Mutant 628 | -9/Materials | Lost 6 parts (2p2n1u1w) 1049 | -9/Materials | Discovered new exit (range 16) 1207 | -9/Materials | Identified exit to Mines 1207 | -9/Materials | Central database locked down 1273 | -9/Materials | Entered Mines 1274 | -9/Mines | A Derelict revealed a hidden shortcut to a safe place 1368 | -9/Mines | Discovered new exit (range 5) 1403 | -9/Mines | Assembled infested the area 1408 | -9/Mines | Assisted by a Guerilla fighting off Assembled 1426 | -9/Mines | Core integrity fell below 50% 1439 | -9/Mines | Core integrity fell below 20% 1441 | -9/Mines | Crushed by falling debris 1454 | -9/Mines | Destroyed by D-53 Grenadier with Mini Grenade Launcher Last Messages --------------- 01434_ Acquired 10 matter. 01434_ as-11230 destroyed. 01434_ as-84572 destroyed. 01434_ Lgt. Cannon destroyed. 01435_ The unstable cave ceiling collapses. 01436_ as-95690 destroyed. 01436_ Core Shielding destroyed. 01437_ The unstable cave ceiling collapses. 01440_ Com. Wheel destroyed. 01441_ The unstable cave ceiling collapses. 01441_ 2 Matter crushed. 01441_ The unstable cave ceiling collapses. 01441_ Crushed by falling debris. 01441_ The unstable cave ceiling collapses. 01444_ D-53 Grenadier destroyed. 01446_ System corrupted: Substantial component data lost. 01446_ U-05 Engineer builds a Wall. 01447_ The unstable cave ceiling collapses. 01450_ U-05 Engineer builds a Wall. 01451_ The unstable cave ceiling collapses. Map ----- +----------------------------------------------------+ | ?????????????????????????????? ????? | | ?????????????????????????????? ????? | | ???????????????????###????????# ?????? | | ??????????????????## ##??????# #?????? | | ?????????????????## ####???# #?????? | | ?????????????????# ##??# #?????? | | ?????????????????# #### #?????? | | ?????????????????## #?????? | | ??????????????????## > #?????? | | ???????????????????## ### ##?????? | | ????????????????????#### #?# #??????? | | ??????????????????????## ##*#??????? | | %??????????????????????# ## #??????? | | #= ?????????????????????# ###%#??????? | | # %!????????????????????# ##?#%#??????? | | %!%%???????????????????# ##??#[#??????? | | % % ?????#########????# #???# #??????? | | % ### ###### #???#*#??????? | | ??? % # ## #???# #??????? | | ??# # ##??# #??????? | | ???# ## #??# #??????? | | ?????#### % d #??# #??????? | | ????????# # # #??# #??????? | | ????????# # #??# #??????? | | ????????## # ##??# #??????? | | ?????????###### # @ #??# #??????? | | ??????????#???###### #u #??# #??????? | | ???????????????????## # ## #??# #??????? | | ????????????????????######t#??# #??????? | | ?????????????????????????# #??# #??????? | | ?????????????????????##### ##?#%#??????? | | ?????????????????????# * ###=#??????? | | ?????????????????????# *] %%#??????? | | ?????????????????????# !#####??????? | | ?????????????????????# < #??????????? | | ?????????????????????# #??????????? | | ?????????????????????# #??????????? | | ?????????????????????# #??????????? | | ?????????????????????# #??????????? | | ?????????????????????########??????????? | | ???????????????????????????????????????? | | ???????????????????????????????????????? | | | | | | | | | | | | | | | | | +----------------------------------------------------+ Best States ------------- Heat Dissipation 28 Coolant Potential 150 Energy Generation 14 Energy Capacity 250 Matter Stores 300 Matter Capacity 300 Sight Range 16 Terrain Scan Density 10 Armor Coverage 150 Core Shielding 20 Evasion (%) 42 Item Schematics ----------------- Maul | -9/Materials | Scanalyzed Plasma Cutter | -9/Materials | Scanalyzed Robot Schematics ------------------ None Fabricated ------------ Nothing Alien Tech Used ----------------- None Achievements -------------- None Challenges ------------ None Game ------ Seed ShadeAssembledMallet Manual? 0 Play Time 00:35:15 Cumulative 225.1 hours Start 2024.12.26 @ 16:32:04 End 2024.12.26 @ 17:08:53 Sessions 1 Manual Loads 0 Difficulty Rogue Special Mode None Game No. 35 Rogue 32 Adventurer 3 Explorer 0 Win Type - Total 8 Types 8/0/0/0/0/0/0/0/0 Lore% 43 Gallery% 72 Achievement% 73 Wizard Run 0 Options --------- Layout 0 ASCII 0 Keyboard 0 Movement Numpad Keybinds 0 Fullscreen 1 Font 18/SmallcapsGlow Map View 76x50 Zoom Use 0% Tactical HUD 1 Map Filters NONE Filters NONE Steam 1 RUN: dedbf080-b938-4ac9-ba43-04daed7a51e8